bitfinex/quotes_BTCUSD_20250515
["timestamp","ask_amount","ask_price","bid_price","bid_amount"]
[1747289816843,0.0312,102530.0,102520.0,1.52930665]
[1747289818206,0.08109757,102540.0,102530.0,0.56432342]
[1747289818432,0.09084891,102540.0,102530.0,0.5740671]
[1747289818633,0.10060072,102540.0,102530.0,0.5740671]
[1747289819041,0.11035272,102540.0,102530.0,0.5740671]
[1747289819456,0.11135272,102540.0,102530.0,0.5740671]
[1747289819658,0.10160072,102540.0,102530.0,0.5740671]
[1747289820038,0.11135272,102540.0,102530.0,0.5740671]
[1747289820248,0.06359433,102540.0,102530.0,0.5740671]
[1747289820458,0.07334586,102540.0,102530.0,0.5740671]
[1747289821142,0.06359433,102540.0,102530.0,0.5740671]
[1747289821347,0.06359433,102540.0,102530.0,0.6713765]
[1747289822821,0.07334595,102540.0,102530.0,0.6713765]
[1747289823031,0.07334595,102540.0,102530.0,0.5740671]
[1747289823459,0.28789588,102540.0,102530.0,0.56431453]
[1747289823685,0.27814426,102540.0,102530.0,0.34974368]
[1747289824116,0.27814426,102540.0,102530.0,0.39944853]
[1747289824333,0.08309843,102540.0,102530.0,0.41895482]
[1747289824547,0.08309776,102540.0,102530.0,0.43846025]
[1747289824765,0.07334586,102540.0,102530.0,0.43846025]
[1747289824973,0.10260149,102540.0,102530.0,0.43846025]
[1747289825406,0.30008626,102540.0,102530.0,0.41895482]
[1747289825615,0.08309824,102540.0,102530.0,0.42870777]
[1747289825826,0.09528861,102540.0,102530.0,0.44821301]
[1747289826460,0.06603251,102540.0,102530.0,0.44821301]
[1747289826673,0.06359433,102540.0,102530.0,0.88552241]
[1747289828356,0.08309776,102540.0,102530.0,0.88552241]
[1747289828588,0.2903342,102540.0,102530.0,0.34974368]
[1747289828797,0.27814426,102540.0,102530.0,0.00974368]
[1747289830489,0.26839235,102540.0,102530.0,0.00974368]
[1747289831327,0.36570175,102540.0,102530.0,0.00974368]
[1747289832812,0.07334624,102540.0,102530.0,0.20480853]
[1747289833059,0.29764817,102540.0,102530.0,0.24382015]
[1747289833278,0.28789655,102540.0,102530.0,0.40920177]
[1747289833496,0.28789655,102540.0,102530.0,0.41895491]
[1747289833919,0.37545404,102540.0,102530.0,0.20438368]
[1747289834144,0.37545404,102540.0,102530.0,0.00974368]
[1747289838589,0.00975305,102530.0,102520.0,0.19464]
[1747289838792,0.00975305,102530.0,102510.0,0.00974368]
[1747289838793,0.26773788,102520.0,102510.0,0.00974368]
[1747289839222,0.27749178,102520.0,102510.0,0.00974368]
[1747289840126,0.27749178,102520.0,102510.0,0.01949882]
[1747289841011,0.27749178,102520.0,102510.0,0.02249882]
[1747289841214,0.27749178,102520.0,102510.0,0.01949882]
[1747289841470,0.27749178,102520.0,102510.0,0.21460154]
[1747289841679,0.27749178,102520.0,102510.0,0.00974368]
[1747289841887,0.27749178,102520.0,102510.0,0.01949882]
[1747289842518,0.26773788,102520.0,102510.0,0.01949882]
[1747289845146,0.26773788,102520.0,102510.0,0.22435668]
[1747289845354,0.08240771,102520.0,102510.0,0.23411135]
[1747289845552,0.28724568,102520.0,102510.0,0.23411135]
[1747289845839,0.0921618,102520.0,102510.0,0.23411135]
[1747289846045,0.10191599,102520.0,102510.0,0.23411135]
[1747289846676,0.28724616,102520.0,102510.0,0.23411154]
[1747289846800,0.27749216,102520.0,102510.0,0.23411154]
[1747289847005,0.27749216,102520.0,102510.0,0.2438663]
[1747289847211,0.27749216,102520.0,102510.0,0.25362087]
[1747289847412,0.07265343,102520.0,102510.0,0.2536202]
[1747289847642,0.06981476,102520.0,102510.0,0.4483002]
[1747289847872,0.29008392,102520.0,102510.0,0.40928154]
[1747289848075,0.28764521,102520.0,102510.0,0.41903621]
[1747289848284,0.27789169,102520.0,102510.0,0.20442368]
[1747289848848,0.27789197,102520.0,102510.0,0.20442368]
[1747289849056,0.27789197,102520.0,102510.0,0.00974368]
[1747289854914,0.26595786,102510.0,102500.0,0.21565981]
[1747289855123,0.26595786,102510.0,102500.0,0.2254159]
[1747289855531,0.27571272,102510.0,102500.0,0.43029385]
[1747289856850,0.27571272,102510.0,102500.0,0.43129385]
[1747289857216,0.27571272,102510.0,102500.0,0.43229385]
[1747289857600,0.27571272,102510.0,102500.0,0.44104975]
[1747289857947,0.27571272,102510.0,102500.0,0.45080556]
[1747289858509,0.27571272,102510.0,102500.0,0.21665981]
[1747289858711,0.26595786,102510.0,102500.0,0.21665981]
[1747289858925,0.36326726,102510.0,102500.0,0.19568]
[1747289859148,0.36326726,102510.0,102500.0,0.001]
[1747289862792,0.64229266,102510.0,102500.0,0.001]
[1747289863221,0.36326726,102510.0,102500.0,0.001]
[1747289864151,0.36326726,102510.0,102500.0,0.20587785]
[1747289864364,0.36326726,102510.0,102500.0,0.001]
[1747289866550,0.64229266,102510.0,102500.0,0.001]
[1747289867628,0.64629266,102510.0,102500.0,0.001]
[1747289868488,0.68767158,102510.0,102500.0,0.001]
[1747289868695,0.23821717,102480.0,102470.0,1.41408603]
[1747289868904,0.30059031,102480.0,102470.0,1.41408612]
[1747289869326,0.29083317,102480.0,102470.0,1.40432774]
[1747289869537,0.29083317,102480.0,102470.0,1.21964631]
[1747289869781,0.29083317,102480.0,102470.0,1.22940469]
[1747289869989,0.29083317,102480.0,102470.0,1.23049902]
[1747289870208,0.29083317,102480.0,102470.0,0.57511696]
[1747289870432,0.27131803,102480.0,102470.0,0.22635801]
[1747289870644,0.27131803,102480.0,102470.0,0.24193604]
[1747289870862,0.27131803,102480.0,102470.0,0.04741604]
[1747289871128,0.27131803,102480.0,102470.0,0.04641604]
[1747289871349,0.27331803,102480.0,102470.0,0.04641604]
[1747289871566,0.27331803,102480.0,102470.0,0.25135396]
[1747289871788,0.27331803,102480.0,102470.0,0.04641604]
[1747289872162,0.27331803,102480.0,102470.0,0.04541604]
[1747289872373,0.27331803,102480.0,102470.0,0.06224937]
[1747289872600,0.27531803,102480.0,102470.0,0.06224937]
[1747289873002,0.27531803,102480.0,102470.0,0.04667134]
[1747289873572,0.27531803,102480.0,102470.0,0.05643029]
[1747289873573,0.26556003,102480.0,102470.0,0.05643029]
[1747289873743,0.26556003,102480.0,102470.0,0.04667134]
[1747289875925,0.25197507,102480.0,102470.0,0.27112678]
[1747289876173,0.05681504,102480.0,102470.0,0.28088506]
[1747289876806,0.06657304,102480.0,102470.0,0.28088506]
[1747289877022,0.05681475,102480.0,102470.0,0.28088506]
[1747289877227,0.06657256,102480.0,102470.0,0.28088506]
[1747289877455,0.04303046,102480.0,102470.0,0.28088506]
[1747289878320,0.07523046,102480.0,102470.0,0.28088506]
[1747289878965,0.08498817,102480.0,102470.0,0.28088506]
[1747289879224,0.08498894,102480.0,102470.0,0.28088506]
[1747289880466,0.05571475,102480.0,102470.0,0.28088506]
[1747289880687,0.004,102480.0,102470.0,0.37819446]
[1747289880902,0.02351466,102480.0,102470.0,0.62969446]
[1747289881118,0.01375723,102480.0,102470.0,0.62969446]
[1747289881977,0.02151466,102480.0,102470.0,0.62969446]
[1747289882387,0.01951466,102480.0,102470.0,0.62969446]
[1747289882631,0.00975723,102480.0,102470.0,0.62969446]
[1747289882836,0.08081361,102490.0,102480.0,0.22443269]
[1747289883053,0.09056989,102490.0,102480.0,0.22443269]
[1747289883257,0.10032684,102490.0,102480.0,0.22443269]
[1747289883458,0.29546782,102490.0,102480.0,0.21467546]
[1747289883876,0.28571144,102490.0,102480.0,0.21467546]
[1747289884086,0.28771144,102490.0,102480.0,0.21467546]
[1747289884512,0.28771144,102490.0,102480.0,0.22443289]
[1747289884990,0.28971144,102490.0,102480.0,0.21467546]
[1747289885866,0.29946848,102490.0,102480.0,0.23419041]
[1747289886769,0.28971182,102490.0,102480.0,0.21467546]
[1747289887186,0.28971182,102490.0,102480.0,0.22443298]
[1747289887401,0.01375657,102490.0,102480.0,0.57419031]
[1747289887609,0.0332697,102490.0,102480.0,0.57419031]
[1747289887823,0.04302665,102490.0,102480.0,0.57419031]
[1747289888031,0.05278369,102490.0,102480.0,0.57419031]
[1747289888235,0.08488369,102490.0,102480.0,0.57419031]
[1747289888660,0.08488369,102490.0,102480.0,0.54491784]
[1747289888661,0.30076839,102490.0,102480.0,0.54491784]
[1747289888840,0.08211485,102480.0,102470.0,0.88331847]
[1747289889117,0.26751793,102480.0,102470.0,0.58099134]
[1747289889323,0.26751793,102480.0,102470.0,0.38667134]
[1747289889733,0.26751793,102480.0,102470.0,0.39643029]
[1747289889955,0.26751793,102480.0,102470.0,0.40618914]
[1747289890163,0.26751793,102480.0,102470.0,0.60136821]
[1747289890589,0.26751793,102480.0,102470.0,0.38667134]
[1747289890791,0.26751793,102480.0,102470.0,0.04667134]
[1747289890792,0.36482733,102480.0,102470.0,0.04667134]
[1747289893043,0.36682733,102480.0,102470.0,0.04667134]
[1747289894156,0.36882733,102480.0,102470.0,0.04667134]
[1747289895767,0.27151793,102480.0,102470.0,0.26136802]
[1747289896686,0.07635723,102480.0,102470.0,0.28088487]
[1747289896892,0.05561475,102480.0,102470.0,0.28088487]
[1747289897099,0.03327218,102480.0,102470.0,0.28088487]
[1747289897419,0.01375723,102480.0,102470.0,1.16713427]
[1747289897591,0.004,102480.0,102470.0,1.16713427]
[1747289897958,0.01375723,102480.0,102470.0,1.16713427]
[1747289898171,0.01375714,102480.0,102470.0,1.15030094]
[1747289898352,0.05966999,102490.0,102480.0,0.22443288]
[1747289899384,0.04015638,102490.0,102480.0,0.22443288]
[1747289899599,0.02151295,102490.0,102480.0,0.22443288]
[1747289899817,0.02151295,102490.0,102480.0,0.24541269]
[1747289900035,0.002,102490.0,102480.0,0.97401269]
[1747289900265,0.004,102490.0,102480.0,1.03151269]
[1747289901149,0.002,102490.0,102480.0,1.03151269]
[1747289901566,0.11157809,102500.0,102490.0,0.22441097]
[1747289901869,0.11157809,102500.0,102490.0,0.23415465]
[1747289902305,0.10182209,102500.0,102490.0,0.23415465]
[1747289902508,0.11157799,102500.0,102490.0,0.23415465]
[1747289902683,0.11157875,102500.0,102490.0,0.23415465]
[1747289903117,0.29894518,102500.0,102490.0,0.23415474]
[1747289903347,0.29118956,102500.0,102490.0,0.22439827]
[1747289904202,0.29118956,102500.0,102490.0,0.23415484]
[1747289904839,0.28143385,102500.0,102490.0,0.21464161]
[1747289905047,0.28143385,102500.0,102490.0,0.00974368]
[1747289905248,0.27167795,102500.0,102490.0,0.00974368]
[1747289906102,0.64801275,102500.0,102490.0,0.00974368]
[1747289906319,0.03903028,102480.0,102470.0,0.24454929]
[1747289906523,0.10343028,102480.0,102470.0,0.26405135]
[1747289907277,0.29859031,102480.0,102470.0,0.60405135]
[1747289907485,0.28883317,102480.0,102470.0,0.37959696]
[1747289907691,0.28883317,102480.0,102470.0,0.59429364]
[1747289907916,0.27907574,102480.0,102470.0,0.36983801]
[1747289908114,0.27907574,102480.0,102470.0,0.37083801]
[1747289908340,0.27907574,102480.0,102470.0,0.5865345]
[1747289908934,0.27907574,102480.0,102470.0,0.57677584]
[1747289909106,0.27907574,102480.0,102470.0,0.57577584]
[1747289909308,0.27907574,102480.0,102470.0,0.57677584]
[1747289909532,0.27907574,102480.0,102470.0,0.5855345]
[1747289909736,0.07415743,102480.0,102470.0,0.60605135]
[1747289909942,0.10343009,102480.0,102470.0,0.60605135]
[1747289910179,0.11318799,102480.0,102470.0,0.60505135]
[1747289910385,0.30059088,102480.0,102470.0,0.59529307]
[1747289910559,0.30059088,102480.0,102470.0,0.61480992]
[1747289910963,0.30059088,102480.0,102470.0,0.61380992]
[1747289911336,0.30259088,102480.0,102470.0,0.61380992]
[1747289912135,0.09767219,102480.0,102470.0,0.61380944]
[1747289912375,0.10743,102480.0,102470.0,0.61380944]
[1747289913388,0.09767219,102480.0,102470.0,0.61380944]
[1747289913553,0.06457219,102480.0,102470.0,0.61380944]
[1747289913932,0.04505714,102480.0,102470.0,0.61380944]
[1747289914132,0.03327189,102480.0,102470.0,0.61380944]
[1747289914334,0.0332718,102480.0,102470.0,0.61380944]
[1747289914832,0.02351447,102480.0,102470.0,0.61380944]
[1747289915047,0.03327199,102480.0,102470.0,0.61380944]
[1747289915250,0.0430297,102480.0,102470.0,0.61380944]
[1747289915464,0.0732297,102480.0,102470.0,0.61380944]
[1747289916110,0.01375714,102480.0,102470.0,0.71111884]
[1747289916326,0.004,102480.0,102470.0,0.71111884]
[1747289916539,0.01375723,102480.0,102470.0,0.71111884]
[1747289917575,0.02351466,102480.0,102470.0,0.71111884]
[1747289917787,0.02351456,102480.0,102470.0,0.71111884]
[1747289918224,0.01375723,102480.0,102470.0,0.71111884]
[1747289919643,0.02351456,102480.0,102470.0,0.71111884]
[1747289919997,0.06457218,102480.0,102470.0,0.71111884]
[1747289920201,0.10542989,102480.0,102470.0,0.71111884]
[1747289920406,0.10542979,102480.0,102470.0,0.71111884]
[1747289920603,0.10542979,102480.0,102470.0,1.09931884]
[1747289920813,0.08591456,102480.0,102470.0,1.09931884]
[1747289921020,0.05481456,102480.0,102470.0,1.09931884]
[1747289921701,0.004,102480.0,102470.0,1.09931884]
[1747289921911,0.004,102480.0,102470.0,1.15911884]
[1747289924152,0.003,102480.0,102470.0,1.15911884]
[1747289926152,0.05281475,102480.0,102470.0,1.09931884]
[1747289926362,0.10282999,102480.0,102470.0,0.90523884]
[1747289926571,0.08331466,102480.0,102470.0,1.09927884]
[1747289926771,0.07355723,102480.0,102470.0,1.09923884]
[1747289927946,0.08331456,102480.0,102470.0,1.09923884]
[1747289928154,0.08331456,102480.0,102470.0,0.71111884]
[1747289928347,0.08331456,102480.0,102470.0,1.09919884]
[1747289928754,0.09307208,102480.0,102470.0,1.09919884]
[1747289928956,0.08331456,102480.0,102470.0,1.09919884]
[1747289929156,0.08331466,102480.0,102470.0,0.71111884]
[1747289929357,0.07355723,102480.0,102470.0,1.09919884]
[1747289930141,0.07355714,102480.0,102470.0,1.09919884]
[1747289930891,0.07355723,102480.0,102470.0,1.09919884]
[1747289932285,0.0638,102480.0,102470.0,1.09919884]
[1747289932493,0.0333,102480.0,102470.0,1.09919884]
[1747289932701,0.003,102480.0,102470.0,1.09919884]
[1747289932906,0.003,102480.0,102470.0,1.13149884]
[1747289933284,0.003,102480.0,102470.0,1.09919884]
[1747289935696,0.0338,102480.0,102470.0,1.09919884]
[1747289936887,0.0338,102480.0,102470.0,1.08945516]
[1747289940591,0.0338,102480.0,102470.0,1.14655516]
[1747289940592,0.003,102480.0,102470.0,1.14655516]
[1747289940805,0.0639,102500.0,102490.0,0.22441097]
[1747289941023,0.0639,102500.0,102490.0,0.64313446]
[1747289941261,0.07365533,102500.0,102490.0,0.64313446]
[1747289941480,0.08341095,102500.0,102490.0,0.64313446]
[1747289941906,0.09316676,102500.0,102490.0,0.64313446]
[1747289942112,0.10292266,102500.0,102490.0,0.62211465]
[1747289942325,0.08341095,102500.0,102490.0,0.62211465]
[1747289942549,0.09316685,102500.0,102490.0,0.62211465]
[1747289942757,0.09316676,102500.0,102490.0,0.64309446]
[1747289942956,0.08341095,102500.0,102490.0,0.64309446]
[1747289943155,0.07565533,102500.0,102490.0,0.64309446]
[1747289943574,0.07665533,102500.0,102490.0,0.64309446]
[1747289943787,0.0669,102500.0,102490.0,0.64309446]
[1747289943989,0.003,102500.0,102490.0,1.08040386]
[1747289944633,0.0359,102500.0,102490.0,1.08040386]
[1747289944831,0.0672,102500.0,102490.0,1.08040386]
[1747289945247,0.0672,102500.0,102490.0,1.09622616]
[1747289945457,0.07695524,102500.0,102490.0,1.09622616]
[1747289949274,0.0672,102500.0,102490.0,1.09622616]
[1747289949487,0.0359,102500.0,102490.0,1.09622616]
[1747289951194,0.04565524,102500.0,102490.0,1.09622616]
[1747289951418,0.0669,102500.0,102490.0,1.09622616]
[1747289954147,0.0359,102500.0,102490.0,1.09622616]
[1747289954365,0.003,102500.0,102490.0,1.12672616]
[1747289954574,0.003,102500.0,102490.0,1.09622616]
[1747289955465,0.003,102500.0,102490.0,1.11076701]
[1747289955670,0.003,102500.0,102490.0,1.16896701]
[1747289956630,0.002,102500.0,102490.0,1.16896701]
[1747289957029,0.002,102500.0,102490.0,1.17096701]
[1747289957264,0.0626,102510.0,102500.0,0.56438909]
[1747289957471,0.0626,102510.0,102500.0,0.66169849]
[1747289963703,0.0301,102510.0,102500.0,0.66169849]
[1747289964214,0.07315343,102520.0,102510.0,0.56436719]
[1747289964431,0.09266086,102520.0,102510.0,1.07988008]
[1747289965099,0.09266086,102520.0,102510.0,0.69240008]
[1747289965347,0.09366086,102520.0,102510.0,0.88620008]
[1747289965776,0.09466086,102520.0,102510.0,0.88620008]
[1747289966427,0.2994995,102520.0,102510.0,0.5853364]
[1747289966665,0.2994995,102520.0,102510.0,0.79864583]
[1747289966913,0.27999207,102520.0,102510.0,0.5853364]
[1747289967148,0.27999207,102520.0,102510.0,0.60007125]
[1747289967391,0.27999207,102520.0,102510.0,0.5853364]
[1747289968239,0.27023807,102520.0,102510.0,0.00974368]
[1747289971944,0.22438909,102500.0,102490.0,1.06984019]
[1747289972119,0.28608909,102500.0,102490.0,1.40017795]
[1747289972307,0.28608909,102500.0,102490.0,0.97893795]
[1747289972512,0.27633366,102500.0,102490.0,0.24044012]
[1747289972735,0.27633366,102500.0,102490.0,0.25019716]
[1747289972916,0.27633366,102500.0,102490.0,0.25995411]
[1747289973339,0.27633366,102500.0,102490.0,0.26395411]
[1747289973963,0.27633366,102500.0,102490.0,0.45709509]
[1747289974358,0.27733366,102500.0,102490.0,0.45709509]
[1747289974560,0.27733366,102500.0,102490.0,0.45509509]
[1747289974765,0.27833366,102500.0,102490.0,0.45509509]
[1747289975165,0.27833366,102500.0,102490.0,0.24044012]
[1747289975374,0.26857795,102500.0,102490.0,0.04664012]
[1747289975577,0.26857795,102500.0,102490.0,0.02566031]
[1747289977988,0.36588735,102500.0,102490.0,0.00983801]
[1747289981288,0.36588735,102500.0,102490.0,9.433e-05]
[1747289989522,0.72891597,102500.0,102490.0,9.433e-05]
[1747289990593,0.64491275,102500.0,102490.0,9.433e-05]
[1747289990797,0.9984536,102500.0,102490.0,9.433e-05]
[1747289990969,1.0114536,102500.0,102490.0,9.433e-05]
[1747289991391,0.6714536,102500.0,102490.0,9.433e-05]
[1747289991601,0.8649336,102500.0,102490.0,9.433e-05]
[1747289991918,0.8609336,102500.0,102490.0,9.433e-05]
[1747289992117,0.8649336,102500.0,102490.0,9.433e-05]
[1747289992320,0.8679336,102500.0,102490.0,9.433e-05]
[1747289992722,0.8649336,102500.0,102490.0,9.433e-05]
[1747289992935,0.8689336,102500.0,102490.0,9.433e-05]
[1747289998314,0.9029938,102500.0,102490.0,9.433e-05]
[1747289999795,0.8689336,102500.0,102490.0,9.433e-05]
[1747290000670,1.5488336,102500.0,102490.0,9.433e-05]
[1747290000906,1.8788336,102500.0,102490.0,9.433e-05]
[1747290002272,1.6853536,102500.0,102490.0,9.433e-05]
[1747290002478,2.0723536,102500.0,102490.0,9.433e-05]
[1747290003100,2.169663,102500.0,102490.0,9.433e-05]
[1747290003523,2.0723536,102500.0,102490.0,9.433e-05]
[1747290005912,0.1787654,102500.0,102490.0,9.433e-05]
[1747290006126,0.03726676,102500.0,102490.0,0.30185623]
[1747290006351,0.24214442,102500.0,102490.0,0.282343]
[1747290006574,0.25503394,102500.0,102490.0,0.07744507]
[1747290006808,0.66456874,102500.0,102490.0,9.433e-05]
[1747290009928,1.02910959,102500.0,102490.0,9.433e-05]
[1747290010135,1.13641899,102500.0,102490.0,9.433e-05]
[1747290010336,1.12641899,102500.0,102490.0,9.433e-05]
[1747290015917,1.40544439,102500.0,102490.0,9.433e-05]
[1747290016375,1.49804439,102500.0,102490.0,9.433e-05]
[1747290016579,1.52539556,102500.0,102490.0,9.433e-05]
[1747290017204,1.52139556,102500.0,102490.0,9.433e-05]
[1747290017411,1.41479556,102500.0,102490.0,9.433e-05]
[1747290017630,1.42279556,102500.0,102490.0,0.00209433]
[1747290017843,1.43079556,102500.0,102490.0,0.00209433]
[1747290020019,1.15177016,102500.0,102490.0,0.00209433]
[1747290021704,1.21031016,102500.0,102490.0,0.00209433]
[1747290023496,1.48933556,102500.0,102490.0,0.00209433]
[1747290025486,1.21031016,102500.0,102490.0,0.00209433]
[1747290027433,1.31291016,102500.0,102490.0,0.00209433]
[1747290028062,1.59193556,102500.0,102490.0,0.00209433]
[1747290028739,1.31291016,102500.0,102490.0,0.00209433]
[1747290029395,1.59193556,102500.0,102490.0,0.00209433]
[1747290031484,1.31291016,102500.0,102490.0,0.00209433]
[1747290032597,1.59193556,102500.0,102490.0,0.00209433]
[1747290032811,1.31291016,102500.0,102490.0,0.00209433]
[1747290037253,1.58387458,102500.0,102490.0,0.00209433]
[1747290040258,1.77707458,102500.0,102490.0,0.00209433]
[1747290044991,2.19855458,102500.0,102490.0,0.00209433]
[1747290050658,1.68663439,102500.0,102490.0,0.00209433]
[1747290050869,0.36529451,102500.0,102490.0,0.00209433]
[1747290051080,1.24763328,102500.0,102490.0,0.06209433]
[1747290051293,1.26217413,102500.0,102490.0,0.06209433]
[1747290051926,1.44550407,102500.0,102490.0,0.06209433]
[1747290052795,1.25230407,102500.0,102490.0,0.06209433]
[1747290053388,1.25230407,102500.0,102490.0,0.03509433]
[1747290054466,1.25230407,102500.0,102490.0,0.06209433]
[1747290054877,0.66794334,102500.0,102490.0,0.06209433]
[1747290055094,0.32794334,102500.0,102490.0,0.06209433]
[1747290056150,0.31994334,102500.0,102490.0,0.06109433]
[1747290056355,0.32294334,102500.0,102490.0,0.25623531]
[1747290056577,0.31194334,102500.0,102490.0,0.27474911]
[1747290056999,0.30518744,102500.0,102490.0,0.06009433]
[1747290057848,0.30818744,102500.0,102490.0,0.06009433]
[1747290058461,0.30518744,102500.0,102490.0,0.06009433]
[1747290058844,0.30918744,102500.0,102490.0,0.06009433]
[1747290059599,0.007,102500.0,102490.0,0.6245053]
[1747290060040,0.007,102500.0,102490.0,0.6255053]
[1747290060519,0.007,102500.0,102490.0,0.7228147]
[1747290060746,0.03901789,102510.0,102500.0,0.25468909]
[1747290060976,0.03901789,102510.0,102500.0,0.45759277]
[1747290061204,0.01950771,102520.0,102510.0,0.22436719]
[1747290061457,0.04876942,102520.0,102510.0,0.25466739]
[1747290061665,0.23409978,102520.0,102510.0,0.25466739]
[1747290062528,0.02150695,102520.0,102510.0,0.29362177]
[1747290062753,0.002,102520.0,102510.0,0.29362177]
[1747290062968,0.01175333,102520.0,102510.0,0.29362177]
[1747290063183,0.02150714,102520.0,102510.0,0.29362177]
[1747290063377,0.01175343,102520.0,102510.0,0.29362177]
[1747290063778,0.02925905,102530.0,102520.0,0.28134559]
[1747290064094,0.02925895,102530.0,102520.0,0.29108927]
[1747290064293,0.02925876,102530.0,102520.0,0.30084279]
[1747290064695,0.01950571,102530.0,102520.0,0.30084279]
[1747290065068,0.02925876,102530.0,102520.0,0.30184279]
[1747290065477,0.01950571,102530.0,102520.0,0.30184279]
[1747290065755,0.03125819,102530.0,102520.0,0.30184279]
[1747290066401,0.04101124,102530.0,102520.0,0.29208927]
[1747290066610,0.04101124,102530.0,102520.0,0.30184279]
[1747290067368,0.04101124,102530.0,102520.0,0.29208927]
[1747290067581,0.05076448,102530.0,102520.0,0.29208927]
[1747290068016,0.05076448,102530.0,102520.0,0.28233565]
[1747290068217,0.041012,102530.0,102520.0,0.29208946]
[1747290068647,0.041012,102530.0,102520.0,0.30184317]
[1747290069176,0.23607685,102530.0,102520.0,0.29208946]
[1747290069382,0.23607685,102530.0,102520.0,0.30184317]
[1747290069600,0.02150571,102530.0,102520.0,0.30184317]
[1747290069810,0.03125885,102530.0,102520.0,0.31159669]
[1747290070231,0.04101209,102530.0,102520.0,0.31159679]
[1747290070448,0.04101209,102530.0,102520.0,0.30184317]
[1747290070666,0.22632418,102530.0,102520.0,0.30184317]
[1747290071280,0.22632418,102530.0,102520.0,0.31159679]
[1747290071490,0.22632418,102530.0,102520.0,0.30184317]
[1747290072101,0.02150609,102530.0,102520.0,0.31159669]
[1747290073136,0.01175257,102530.0,102520.0,0.31159669]
[1747290073346,0.03125771,102530.0,102520.0,0.31159669]
[1747290073561,0.04101066,102530.0,102520.0,0.31159669]
[1747290073707,0.05076371,102530.0,102520.0,0.31159669]
[1747290074085,0.002,102530.0,102520.0,0.31159669]
[1747290074289,0.02150524,102530.0,102520.0,0.31159669]
[1747290074918,0.02150515,102530.0,102520.0,0.31159669]
[1747290075807,0.0507641,102530.0,102520.0,0.30184317]
[1747290076026,0.04101162,102530.0,102520.0,0.31159679]
[1747290076236,0.04101162,102530.0,102520.0,0.31159612]
[1747290076440,0.04345054,102530.0,102520.0,0.3018426]
[1747290076647,0.04101219,102530.0,102520.0,0.3018426]
[1747290076882,0.23607704,102530.0,102520.0,0.29208898]
[1747290077511,0.22632428,102530.0,102520.0,0.23508898]
[1747290077652,0.22632428,102530.0,102520.0,0.22533527]
[1747290077867,0.64615814,102530.0,102520.0,0.01074368]
[1747290078068,0.64615814,102530.0,102520.0,0.001]
[1747290078872,0.36702749,102530.0,102520.0,0.001]
[1747290081283,0.30412749,102530.0,102520.0,0.001]
[1747290084909,0.002,102530.0,102520.0,0.20583788]
[1747290085124,0.002,102530.0,102520.0,0.29278889]
[1747290085335,0.01175238,102530.0,102520.0,0.29278889]
[1747290085598,0.002,102530.0,102520.0,0.29278889]
[1747290085848,0.01175248,102530.0,102520.0,0.29278889]
[1747290086405,0.02150515,102530.0,102520.0,0.29278889]
[1747290086775,0.03125791,102530.0,102520.0,0.29278889]
[1747290087202,0.01175248,102530.0,102520.0,0.29278889]
[1747290087402,0.02150515,102530.0,102520.0,0.29278889]
[1747290087600,0.01175248,102530.0,102520.0,0.29278889]
[1747290087802,0.02150515,102530.0,102520.0,0.29278889]
[1747290088294,0.002,102530.0,102520.0,0.63278889]
[1747290088493,0.002,102530.0,102520.0,0.92297829]
[1747290089301,0.69940315,102540.0,102520.0,0.90247048]
[1747290089302,0.69940325,102540.0,102520.0,0.90247048]
[1747290089515,0.01950325,102540.0,102530.0,0.28132342]
[1747290089715,0.01950258,102550.0,102540.0,0.21454974]
[1747290089915,0.01950258,102550.0,102540.0,0.22429342]
[1747290090124,0.21452939,102550.0,102540.0,0.22429342]
[1747290090377,0.00975067,102550.0,102540.0,0.23404504]
[1747290090536,0.01950153,102550.0,102540.0,0.23404504]
[1747290090731,0.02973611,102550.0,102540.0,0.29184504]
[1747290091184,0.01998496,102550.0,102540.0,0.29184504]
[1747290091383,0.03373592,102550.0,102540.0,0.29184504]
[1747290091599,0.02973592,102550.0,102540.0,0.29184504]
[1747290091924,0.03173592,102550.0,102540.0,0.29184504]
[1747290092157,0.00248343,102550.0,102540.0,0.29184504]
[1747290092358,0.01223391,102550.0,102540.0,0.29184504]
[1747290092642,0.03173535,102550.0,102540.0,0.48472504]
[1747290092853,0.03173526,102550.0,102540.0,0.48472504]
[1747290093067,0.03373526,102550.0,102540.0,0.48472504]
[1747290093282,0.04348622,102550.0,102540.0,0.48472504]
[1747290093491,0.04148622,102550.0,102540.0,0.48472504]
[1747290093696,0.04148622,102550.0,102540.0,0.48572504]
[1747290093697,0.03173526,102550.0,102540.0,0.48572504]
[1747290093898,0.04148622,102550.0,102540.0,0.48572504]
[1747290094556,0.03948622,102550.0,102540.0,0.48572504]
[1747290095622,0.04923737,102550.0,102540.0,0.48572504]
[1747290095843,0.23451436,102550.0,102540.0,0.40842161]
[1747290096051,0.27881263,102550.0,102540.0,0.40842161]
[1747290096263,0.26906148,102550.0,102540.0,0.01074368]
[1747290096686,0.25931024,102550.0,102540.0,0.01074368]
[1747290097585,0.25931024,102550.0,102540.0,0.2155417]
[1747290099193,0.25931024,102550.0,102540.0,0.01074368]
[1747290100215,0.25931024,102550.0,102540.0,0.21554161]
[1747290104976,0.09353697,102550.0,102540.0,0.23504542]
[1747290105181,0.22476378,102550.0,102540.0,0.23504542]
[1747290105766,0.25616378,102550.0,102540.0,0.23504542]
[1747290106350,0.28886378,102550.0,102540.0,0.22529361]
[1747290106578,0.01998496,102550.0,102540.0,0.30289714]
[1747290106784,0.00048343,102550.0,102540.0,0.30289714]
[1747290106986,0.02973535,102550.0,102540.0,0.30289714]
[1747290107399,0.0394864,102550.0,102540.0,0.24479714]
[1747290108271,0.11183831,102550.0,102540.0,0.24479714]
[1747290108669,0.01023401,102550.0,102540.0,0.30199714]
[1747290108982,0.01998478,102550.0,102540.0,0.30199714]
[1747290110588,0.00048343,102550.0,102540.0,0.73930654]
[1747290111004,0.00048343,102550.0,102540.0,0.93190654]
[1747290111640,0.00048343,102550.0,102540.0,0.94473365]
[1747290112257,0.00048343,102550.0,102540.0,0.95900407]
[1747290112468,0.00048343,102550.0,102540.0,0.98825707]
[1747290113532,0.00048343,102550.0,102540.0,1.00279792]
[1747290114901,0.00048343,102550.0,102540.0,1.00379792]
[1747290115248,0.00048343,102550.0,102540.0,1.00279792]
[1747290115696,0.00048343,102550.0,102540.0,1.00479792]
[1747290120232,0.00048343,102550.0,102540.0,0.99505424]
[1747290122901,0.00048343,102550.0,102540.0,0.99305424]
[1747290123100,0.00048343,102550.0,102540.0,0.99705424]
[1747290124014,0.00048343,102550.0,102540.0,0.99605424]
[1747290124398,0.00048343,102550.0,102540.0,0.99805424]
[1747290126446,0.00048343,102550.0,102540.0,1.70915424]
[1747290127141,0.07274763,102580.0,102570.0,0.22423594]
[1747290127347,0.07284197,102580.0,102570.0,0.63999943]
[1747290127880,0.06309434,102580.0,102570.0,0.63999943]
[1747290128334,0.06509434,102580.0,102570.0,0.63999943]
[1747290128527,0.06709434,102580.0,102570.0,0.63999943]
[1747290129181,0.06849434,102580.0,102570.0,0.97999943]